[Event "Titled Tuesday Blitz May 23 Early 2023"]
[White "Matlakov, Maxim"]
[Black "Al-Tarboush, Ward"]
[WhiteFideId "4168003"]
[BlackFideId "7601450"]
[WhiteElo "2666"]
[BlackElo "2265"]
[Result "1-0"]
[Round "02"]
[TimeControl "180+2"]
[Date "2023.05.23"]
[WhiteClock "0:01:24"]
[BlackClock "0:00:35"]

1. Nf3 {[%clk 0:02:57]}  Nf6 {[%clk 0:02:57]} 2. g3 {[%clk 0:02:58]}  g6 {[%clk 0:02:54]} 3. Bg2 {[%clk 0:02:58]}  Bg7 {[%clk 0:02:54]} 4. d4 {[%clk 0:02:57]}  d5 {[%clk 0:02:51]} 5. O-O {[%clk 0:02:57]}  O-O {[%clk 0:02:51]} 6. c3 {[%clk 0:02:58]}  Nc6 {[%clk 0:02:49]} 7. Bf4 {[%clk 0:02:55]}  Bg4 {[%clk 0:02:49]} 8. Nbd2 {[%clk 0:02:54]}  Nh5 {[%clk 0:02:42]} 9. Bg5 {[%clk 0:02:53]}  h6 {[%clk 0:02:41]} 10. Be3 {[%clk 0:02:53]}  e5 {[%clk 0:02:36]} 11. Nxe5 {[%clk 0:02:47]}  Nxe5 {[%clk 0:02:31]} 12. dxe5 {[%clk 0:02:48]}  Qd7 {[%clk 0:02:22]} 13. Nb3 {[%clk 0:02:34]}  c6 {[%clk 0:02:15]} 14. f3 {[%clk 0:02:27]}  Bh3 {[%clk 0:02:11]} 15. g4 {[%clk 0:02:26]}  Bxg4 {[%clk 0:02:10]} 16. fxg4 {[%clk 0:02:26]}  Qxg4 {[%clk 0:02:11]} 17. Qd4 {[%clk 0:02:07]}  Qe6 {[%clk 0:02:04]} 18. Nc5 {[%clk 0:02:06]}  Qe7 {[%clk 0:02:05]} 19. Nd3 {[%clk 0:02:03]}  Rae8 {[%clk 0:01:59]} 20. Qg4 {[%clk 0:02:01]}  Bxe5 {[%clk 0:01:56]} 21. Nxe5 {[%clk 0:02:00]}  Qxe5 {[%clk 0:01:57]} 22. Bc5 {[%clk 0:01:55]}  Qxe2 {[%clk 0:01:32]} 23. Qxe2 {[%clk 0:01:53]}  Rxe2 {[%clk 0:01:32]} 24. Bxf8 {[%clk 0:01:53]}  Kxf8 {[%clk 0:01:32]} 25. Rf2 {[%clk 0:01:53]}  Re5 {[%clk 0:01:30]} 26. Kf1 {[%clk 0:01:51]}  Rg5 {[%clk 0:01:24]} 27. Re1 {[%clk 0:01:49]}  Ng7 {[%clk 0:01:25]} 28. Bh3 {[%clk 0:01:47]}  Rh5 {[%clk 0:01:22]} 29. Bc8 {[%clk 0:01:44]}  b6 {[%clk 0:01:19]} 30. Bd7 {[%clk 0:01:40]}  c5 {[%clk 0:01:18]} 31. Be6 {[%clk 0:01:29]}  Nxe6 {[%clk 0:01:13]} 32. Rxe6 {[%clk 0:01:30]}  Rxh2 {[%clk 0:01:06]} 33. Rxh2 {[%clk 0:01:31]}  fxe6 {[%clk 0:01:04]} 34. Rxh6 {[%clk 0:01:32]}  Kg7 {[%clk 0:01:04]} 35. Rh2 {[%clk 0:01:31]}  b5 {[%clk 0:01:02]} 36. Ke2 {[%clk 0:01:30]}  a5 {[%clk 0:01:01]} 37. Ke3 {[%clk 0:01:29]}  a4 {[%clk 0:00:57]} 38. b4 {[%clk 0:01:26]}  c4 {[%clk 0:00:40]} 39. Kd4 {[%clk 0:01:25]}  Kf6 {[%clk 0:00:39]} 40. Rf2+ {[%clk 0:01:25]}  Kg5 {[%clk 0:00:36]} 41. Kc5 {[%clk 0:01:24]}  Kg4 {[%clk 0:00:36]} 42. Kxb5 {[%clk 0:01:24]}  e5 {[%clk 0:00:36]} 43. Kc5 {[%clk 0:01:24]}  e4 {[%clk 0:00:35]} 44. Kd4 {[%clk 0:01:24]} 1-0


[Site "https://www.chess.com"]

[Event "Titled Tuesday Blitz May 23 Early 2023"]
[White "bubeliang"]
[Black "Grigoriants, Sergey"]
[BlackFideId "4130804"]
[WhiteElo "2595"]
[BlackElo "2502"]
[Result "1/2-1/2"]
[Round "02"]
[TimeControl "180+2"]
[Date "2023.05.23"]
[WhiteClock "0:00:16"]
[BlackClock "0:00:06"]

1. e4 {[%clk 0:03:00]}  c5 {[%clk 0:02:50]} 2. c3 {[%clk 0:03:00]}  d5 {[%clk 0:02:48]} 3. exd5 {[%clk 0:02:59]}  Qxd5 {[%clk 0:02:49]} 4. d4 {[%clk 0:02:59]}  Nf6 {[%clk 0:02:49]} 5. Nf3 {[%clk 0:02:58]}  e6 {[%clk 0:02:48]} 6. Na3 {[%clk 0:02:57]}  Qd8 {[%clk 0:02:46]} 7. Nc4 {[%clk 0:02:54]}  Nc6 {[%clk 0:02:41]} 8. Be3 {[%clk 0:02:51]}  cxd4 {[%clk 0:02:15]} 9. Nxd4 {[%clk 0:02:51]}  Nd5 {[%clk 0:02:15]} 10. Nxc6 {[%clk 0:02:47]}  bxc6 {[%clk 0:02:14]} 11. Qa4 {[%clk 0:02:35]}  Nxe3 {[%clk 0:02:03]} 12. Nxe3 {[%clk 0:02:32]}  Qc7 {[%clk 0:02:01]} 13. Bd3 {[%clk 0:02:30]}  Bc5 {[%clk 0:01:54]} 14. Qe4 {[%clk 0:02:03]}  g6 {[%clk 0:01:06]} 15. O-O {[%clk 0:01:49]}  O-O {[%clk 0:01:05]} 16. Bc4 {[%clk 0:01:19]}  Rb8 {[%clk 0:00:38]} 17. b4 {[%clk 0:01:09]}  Bd6 {[%clk 0:00:38]} 18. Qh4 {[%clk 0:01:06]}  Be5 {[%clk 0:00:32]} 19. Rac1 {[%clk 0:00:58]}  Qd8 {[%clk 0:00:29]} 20. Qe4 {[%clk 0:00:56]}  Qc7 {[%clk 0:00:23]} 21. Qh4 {[%clk 0:00:53]}  Bg7 {[%clk 0:00:17]} 22. Ng4 {[%clk 0:00:50]}  f5 {[%clk 0:00:16]} 23. Ne3 {[%clk 0:00:34]}  Kh8 {[%clk 0:00:13]} 24. Rfe1 {[%clk 0:00:33]}  e5 {[%clk 0:00:13]} 25. Rcd1 {[%clk 0:00:28]}  e4 {[%clk 0:00:11]} 26. Nc2 {[%clk 0:00:26]}  Bxc3 {[%clk 0:00:08]} 27. Re3 {[%clk 0:00:26]}  Bf6 {[%clk 0:00:07]} 28. Qh6 {[%clk 0:00:23]}  Qg7 {[%clk 0:00:07]} 29. Qf4 {[%clk 0:00:21]}  Be5 {[%clk 0:00:07]} 30. Qh4 {[%clk 0:00:19]}  Qf6 {[%clk 0:00:06]} 31. Qh6 {[%clk 0:00:17]}  Qg7 {[%clk 0:00:06]} 32. Qh4 {[%clk 0:00:17]}  Qf6 {[%clk 0:00:06]} 33. Qh6 {[%clk 0:00:17]}  Qg7 {[%clk 0:00:06]} 34. Qh4 {[%clk 0:00:16]} 1/2-1/2


[Site "https://www.chess.com"]

[Event "Titled Tuesday Blitz May 23 Early 2023"]
[White "Drygalov, Sergey"]
[Black "djokovic74"]
[WhiteFideId "24171743"]
[WhiteElo "2533"]
[BlackElo "2595"]
[Result "1-0"]
[Round "02"]
[TimeControl "180+2"]
[Date "2023.05.23"]
[WhiteClock "0:00:28"]
[BlackClock "0:00:03"]

1. d4 {[%clk 0:03:00]}  e6 {[%clk 0:03:00]} 2. c4 {[%clk 0:03:01]}  Nf6 {[%clk 0:03:00]} 3. Nc3 {[%clk 0:03:01]}  Bb4 {[%clk 0:03:00]} 4. e3 {[%clk 0:03:01]}  O-O {[%clk 0:03:00]} 5. Bd3 {[%clk 0:03:02]}  b6 {[%clk 0:02:59]} 6. Ne2 {[%clk 0:03:01]}  d5 {[%clk 0:02:59]} 7. cxd5 {[%clk 0:02:56]}  exd5 {[%clk 0:02:59]} 8. a3 {[%clk 0:02:57]}  Bd6 {[%clk 0:02:56]} 9. b4 {[%clk 0:02:54]}  a5 {[%clk 0:02:48]} 10. b5 {[%clk 0:02:54]}  Bb7 {[%clk 0:02:45]} 11. Qc2 {[%clk 0:02:53]}  Nbd7 {[%clk 0:02:43]} 12. Ng3 {[%clk 0:02:53]}  g6 {[%clk 0:02:41]} 13. O-O {[%clk 0:02:53]}  Re8 {[%clk 0:02:40]} 14. a4 {[%clk 0:02:51]}  Qe7 {[%clk 0:02:39]} 15. f3 {[%clk 0:02:48]}  h5 {[%clk 0:02:26]} 16. Nge2 {[%clk 0:02:16]}  Rac8 {[%clk 0:02:15]} 17. Bd2 {[%clk 0:02:08]}  c5 {[%clk 0:01:51]} 18. bxc6 {[%clk 0:02:07]}  Bxc6 {[%clk 0:01:47]} 19. Qb3 {[%clk 0:02:03]}  Kg7 {[%clk 0:01:35]} 20. e4 {[%clk 0:02:01]}  dxe4 {[%clk 0:01:26]} 21. fxe4 {[%clk 0:02:00]}  Ng4 {[%clk 0:00:39]} 22. h3 {[%clk 0:01:59]}  Ngf6 {[%clk 0:00:35]} 23. Bg5 {[%clk 0:01:55]}  Bb8 {[%clk 0:00:32]} 24. e5 {[%clk 0:01:48]}  Bxe5 {[%clk 0:00:31]} 25. dxe5 {[%clk 0:01:48]}  Qxe5 {[%clk 0:00:32]} 26. Bf4 {[%clk 0:01:30]}  Qc5+ {[%clk 0:00:27]} 27. Kh1 {[%clk 0:01:17]}  Ne5 {[%clk 0:00:26]} 28. Bb5 {[%clk 0:01:14]}  Bb7 {[%clk 0:00:23]} 29. Rac1 {[%clk 0:00:58]}  Qe7 {[%clk 0:00:17]} 30. Bxe8 {[%clk 0:00:55]}  Qxe8 {[%clk 0:00:15]} 31. Bxe5 {[%clk 0:00:48]}  Qxe5 {[%clk 0:00:15]} 32. Qxb6 {[%clk 0:00:48]}  Ba8 {[%clk 0:00:14]} 33. Qd4 {[%clk 0:00:44]}  Qe6 {[%clk 0:00:13]} 34. Nf4 {[%clk 0:00:44]}  Qf5 {[%clk 0:00:13]} 35. Nxh5+ {[%clk 0:00:30]}  Qxh5 {[%clk 0:00:13]} 36. Qxf6+ {[%clk 0:00:30]}  Kh6 {[%clk 0:00:13]} 37. Qf4+ {[%clk 0:00:30]}  g5 {[%clk 0:00:13]} 38. Qf6+ {[%clk 0:00:29]}  Kh7 {[%clk 0:00:11]} 39. Qf5+ {[%clk 0:00:28]}  Kg7 {[%clk 0:00:09]} 40. Qxc8 {[%clk 0:00:27]}  g4 {[%clk 0:00:03]} 41. Qxg4+ {[%clk 0:00:27]}  Qxg4 {[%clk 0:00:03]} 42. hxg4 {[%clk 0:00:28]} 1-0


[Site "https://www.chess.com"]

[Event "Titled Tuesday Blitz May 23 Early 2023"]
[White "Ahmadzada, Ahmad"]
[Black "hakanazeri2"]
[WhiteFideId "13413007"]
[WhiteElo "2388"]
[BlackElo "2591"]
[Result "1/2-1/2"]
[Round "02"]
[TimeControl "180+2"]
[Date "2023.05.23"]
[WhiteClock "0:00:03"]
[BlackClock "0:00:05"]

1. Nf3 {[%clk 0:03:00]}  c5 {[%clk 0:02:47]} 2. g3 {[%clk 0:02:56]}  Nc6 {[%clk 0:02:46]} 3. Bg2 {[%clk 0:02:56]}  e6 {[%clk 0:02:36]} 4. c4 {[%clk 0:02:54]}  Nf6 {[%clk 0:02:35]} 5. O-O {[%clk 0:02:53]}  Be7 {[%clk 0:02:32]} 6. b3 {[%clk 0:02:53]}  O-O {[%clk 0:02:32]} 7. Bb2 {[%clk 0:02:54]}  d5 {[%clk 0:02:33]} 8. e3 {[%clk 0:02:52]}  b6 {[%clk 0:02:32]} 9. Qe2 {[%clk 0:02:51]}  Bb7 {[%clk 0:02:30]} 10. d3 {[%clk 0:02:46]}  Qc7 {[%clk 0:02:26]} 11. Nc3 {[%clk 0:02:43]}  Rac8 {[%clk 0:02:24]} 12. Rfd1 {[%clk 0:02:42]}  Rfd8 {[%clk 0:02:23]} 13. Rac1 {[%clk 0:02:34]}  Qb8 {[%clk 0:02:14]} 14. cxd5 {[%clk 0:02:21]}  Nxd5 {[%clk 0:01:58]} 15. Nxd5 {[%clk 0:02:20]}  exd5 {[%clk 0:01:59]} 16. d4 {[%clk 0:02:18]}  c4 {[%clk 0:01:17]} 17. Ne5 {[%clk 0:01:24]}  b5 {[%clk 0:01:09]} 18. e4 {[%clk 0:01:11]}  dxe4 {[%clk 0:00:34]} 19. Bxe4 {[%clk 0:01:07]}  Nxe5 {[%clk 0:00:33]} 20. dxe5 {[%clk 0:00:52]}  Rxd1+ {[%clk 0:00:30]} 21. Rxd1 {[%clk 0:00:52]}  Bxe4 {[%clk 0:00:30]} 22. Qxe4 {[%clk 0:00:53]}  c3 {[%clk 0:00:30]} 23. Bc1 {[%clk 0:00:53]}  Qc7 {[%clk 0:00:27]} 24. Rd5 {[%clk 0:00:35]}  Rd8 {[%clk 0:00:23]} 25. Kg2 {[%clk 0:00:25]}  b4 {[%clk 0:00:17]} 26. Rxd8+ {[%clk 0:00:17]}  Qxd8 {[%clk 0:00:16]} 27. Be3 {[%clk 0:00:16]}  h6 {[%clk 0:00:15]} 28. Bxa7 {[%clk 0:00:12]}  Qa5 {[%clk 0:00:11]} 29. Be3 {[%clk 0:00:05]}  Qxa2 {[%clk 0:00:10]} 30. Qc4 {[%clk 0:00:05]}  c2 {[%clk 0:00:05]} 31. Qc8+ {[%clk 0:00:04]}  Bf8 {[%clk 0:00:04]} 32. Qc4 {[%clk 0:00:03]}  Qb2 {[%clk 0:00:03]} 33. e6 {[%clk 0:00:03]}  fxe6 {[%clk 0:00:03]} 34. Qxe6+ {[%clk 0:00:03]}  Kh8 {[%clk 0:00:04]} 35. Qc4 {[%clk 0:00:03]}  Be7 {[%clk 0:00:04]} 36. Qc8+ {[%clk 0:00:02]}  Kh7 {[%clk 0:00:03]} 37. Qc4 {[%clk 0:00:02]}  Bf6 {[%clk 0:00:03]} 38. h4 {[%clk 0:00:02]}  Bc3 {[%clk 0:00:03]} 39. Qe4+ {[%clk 0:00:02]}  Kh8 {[%clk 0:00:04]} 40. Qe8+ {[%clk 0:00:02]}  Kh7 {[%clk 0:00:04]} 41. Qe4+ {[%clk 0:00:03]}  Kh8 {[%clk 0:00:05]} 42. Qe8+ {[%clk 0:00:03]}  Kh7 {[%clk 0:00:05]} 43. Qe4+ {[%clk 0:00:03]} 1/2-1/2


[Site "https://www.chess.com"]

[Event "Titled Tuesday Blitz May 23 Early 2023"]
[White "Babazada, Khazar"]
[Black "Miranda, Rafael"]
[WhiteFideId "13413554"]
[BlackFideId "130990"]
[WhiteElo "2351"]
[BlackElo "2204"]
[Result "1-0"]
[Round "02"]
[TimeControl "180+2"]
[Date "2023.05.23"]
[WhiteClock "0:01:04"]
[BlackClock "0:00:37"]

1. e4 {[%clk 0:03:00]}  e5 {[%clk 0:02:59]} 2. Nf3 {[%clk 0:02:59]}  Nc6 {[%clk 0:03:00]} 3. Bb5 {[%clk 0:02:59]}  g6 {[%clk 0:03:00]} 4. O-O {[%clk 0:02:58]}  Bg7 {[%clk 0:03:00]} 5. c3 {[%clk 0:02:58]}  Nge7 {[%clk 0:02:57]} 6. d4 {[%clk 0:02:58]}  exd4 {[%clk 0:02:58]} 7. cxd4 {[%clk 0:02:58]}  d5 {[%clk 0:02:59]} 8. Bxc6+ {[%clk 0:02:49]}  bxc6 {[%clk 0:02:57]} 9. Nc3 {[%clk 0:02:48]}  O-O {[%clk 0:02:53]} 10. Re1 {[%clk 0:02:41]}  Bg4 {[%clk 0:02:49]} 11. e5 {[%clk 0:02:39]}  Nf5 {[%clk 0:02:46]} 12. Be3 {[%clk 0:02:34]}  Rb8 {[%clk 0:02:39]} 13. Na4 {[%clk 0:02:33]}  f6 {[%clk 0:02:34]} 14. e6 {[%clk 0:02:26]}  Re8 {[%clk 0:02:26]} 15. Nc5 {[%clk 0:02:16]}  Nh4 {[%clk 0:02:01]} 16. Bf4 {[%clk 0:02:10]}  Bxf3 {[%clk 0:01:52]} 17. gxf3 {[%clk 0:02:10]}  Rxb2 {[%clk 0:01:52]} 18. Bg3 {[%clk 0:02:07]}  Rd2 {[%clk 0:01:38]} 19. Qb3 {[%clk 0:01:53]}  Nf5 {[%clk 0:01:37]} 20. Qb7 {[%clk 0:01:41]}  Nxd4 {[%clk 0:01:28]} 21. Kg2 {[%clk 0:01:41]}  Nc2 {[%clk 0:01:19]} 22. Qxc6 {[%clk 0:01:22]}  Nxe1+ {[%clk 0:01:14]} 23. Rxe1 {[%clk 0:01:23]}  Bf8 {[%clk 0:01:12]} 24. Nd7 {[%clk 0:01:21]}  Kg7 {[%clk 0:01:04]} 25. Bxc7 {[%clk 0:01:04]}  Qa8 {[%clk 0:00:37]} 26. Qc3 {[%clk 0:01:04]} 1-0


[Site "https://www.chess.com"]

[Event "Titled Tuesday Blitz May 23 Early 2023"]
[White "Spitzl, Vinzent"]
[Black "Sychev, Klementy"]
[WhiteFideId "12901253"]
[BlackFideId "4114060"]
[WhiteElo "2225"]
[BlackElo "2583"]
[Result "1/2-1/2"]
[Round "02"]
[TimeControl "180+2"]
[Date "2023.05.23"]
[WhiteClock "0:00:16"]
[BlackClock "0:00:04"]

1. e4 {[%clk 0:03:00]}  e5 {[%clk 0:02:59]} 2. Nf3 {[%clk 0:03:00]}  Nc6 {[%clk 0:02:59]} 3. Bb5 {[%clk 0:03:01]}  a6 {[%clk 0:03:00]} 4. Ba4 {[%clk 0:03:02]}  f5 {[%clk 0:03:00]} 5. d3 {[%clk 0:02:59]}  fxe4 {[%clk 0:03:00]} 6. dxe4 {[%clk 0:02:59]}  Nf6 {[%clk 0:03:00]} 7. Qe2 {[%clk 0:02:54]}  d6 {[%clk 0:02:57]} 8. Nc3 {[%clk 0:02:54]}  Be7 {[%clk 0:02:56]} 9. Bb3 {[%clk 0:02:53]}  Na5 {[%clk 0:02:54]} 10. h3 {[%clk 0:02:47]}  Nxb3 {[%clk 0:02:53]} 11. axb3 {[%clk 0:02:48]}  O-O {[%clk 0:02:53]} 12. Bg5 {[%clk 0:02:46]}  Be6 {[%clk 0:02:43]} 13. O-O {[%clk 0:02:44]}  Nh5 {[%clk 0:02:35]} 14. Be3 {[%clk 0:02:41]}  Qe8 {[%clk 0:02:05]} 15. Nd5 {[%clk 0:02:32]}  Bd8 {[%clk 0:01:57]} 16. Kh2 {[%clk 0:02:24]}  Qg6 {[%clk 0:01:44]} 17. Rad1 {[%clk 0:02:06]}  Qxe4 {[%clk 0:01:17]} 18. Nd2 {[%clk 0:01:36]}  Qg6 {[%clk 0:01:06]} 19. Nc4 {[%clk 0:01:31]}  c6 {[%clk 0:00:45]} 20. Ndb6 {[%clk 0:01:22]}  Bxb6 {[%clk 0:00:43]} 21. Nxb6 {[%clk 0:01:22]}  Rad8 {[%clk 0:00:43]} 22. Nc4 {[%clk 0:01:16]}  Bd5 {[%clk 0:00:35]} 23. Qg4 {[%clk 0:01:09]}  Qxg4 {[%clk 0:00:20]} 24. hxg4 {[%clk 0:01:10]}  Nf4 {[%clk 0:00:20]} 25. f3 {[%clk 0:00:59]}  Bxc4 {[%clk 0:00:18]} 26. bxc4 {[%clk 0:00:58]}  Ne6 {[%clk 0:00:18]} 27. Rd2 {[%clk 0:00:53]}  Kf7 {[%clk 0:00:18]} 28. Rfd1 {[%clk 0:00:54]}  Ke7 {[%clk 0:00:18]} 29. Bf2 {[%clk 0:00:53]}  Rd7 {[%clk 0:00:17]} 30. Be3 {[%clk 0:00:53]}  Rh8 {[%clk 0:00:15]} 31. Kg3 {[%clk 0:00:52]}  h5 {[%clk 0:00:12]} 32. gxh5 {[%clk 0:00:52]}  Rxh5 {[%clk 0:00:11]} 33. b4 {[%clk 0:00:50]}  g5 {[%clk 0:00:11]} 34. Rd3 {[%clk 0:00:44]}  Rh8 {[%clk 0:00:10]} 35. Bd2 {[%clk 0:00:38]}  Nf4 {[%clk 0:00:10]} 36. Bxf4 {[%clk 0:00:36]}  gxf4+ {[%clk 0:00:10]} 37. Kf2 {[%clk 0:00:36]}  Ke6 {[%clk 0:00:10]} 38. R3d2 {[%clk 0:00:29]}  d5 {[%clk 0:00:09]} 39. cxd5+ {[%clk 0:00:29]}  cxd5 {[%clk 0:00:10]} 40. Re2 {[%clk 0:00:25]}  Kf5 {[%clk 0:00:09]} 41. Rde1 {[%clk 0:00:25]}  Re7 {[%clk 0:00:08]} 42. Rd1 {[%clk 0:00:25]}  Rd8 {[%clk 0:00:08]} 43. Red2 {[%clk 0:00:25]}  d4 {[%clk 0:00:08]} 44. c4 {[%clk 0:00:24]}  Rh7 {[%clk 0:00:07]} 45. c5 {[%clk 0:00:22]}  Rg8 {[%clk 0:00:06]} 46. Re2 {[%clk 0:00:18]}  Rhg7 {[%clk 0:00:06]} 47. Kf1 {[%clk 0:00:17]}  Rh7 {[%clk 0:00:06]} 48. Kf2 {[%clk 0:00:16]}  Rh2 {[%clk 0:00:05]} 49. Kg1 {[%clk 0:00:16]}  Rh7 {[%clk 0:00:04]} 50. Kf2 {[%clk 0:00:16]} 1/2-1/2


[Site "https://www.chess.com"]

[Event "Titled Tuesday Blitz May 23 Early 2023"]
[White "egorchess95"]
[Black "Stribuk, Artiom"]
[BlackFideId "13515659"]
[WhiteElo "2577"]
[BlackElo "2303"]
[Result "0-1"]
[Round "02"]
[TimeControl "180+2"]
[Date "2023.05.23"]
[WhiteClock "0:00:11"]
[BlackClock "0:00:15"]

1. e4 {[%clk 0:03:00]}  c5 {[%clk 0:02:59]} 2. Nf3 {[%clk 0:03:01]}  d6 {[%clk 0:02:58]} 3. d4 {[%clk 0:03:01]}  cxd4 {[%clk 0:02:59]} 4. Qxd4 {[%clk 0:03:01]}  Nf6 {[%clk 0:02:57]} 5. Nc3 {[%clk 0:03:01]}  Nc6 {[%clk 0:02:57]} 6. Bb5 {[%clk 0:03:01]}  Bd7 {[%clk 0:02:58]} 7. Bxc6 {[%clk 0:03:02]}  Bxc6 {[%clk 0:02:59]} 8. Bg5 {[%clk 0:03:01]}  e6 {[%clk 0:02:59]} 9. O-O-O {[%clk 0:03:02]}  Be7 {[%clk 0:03:00]} 10. Qd3 {[%clk 0:03:02]}  Qa5 {[%clk 0:03:00]} 11. Kb1 {[%clk 0:03:02]}  O-O {[%clk 0:02:40]} 12. h4 {[%clk 0:03:00]}  Rfc8 {[%clk 0:02:22]} 13. Nd4 {[%clk 0:02:59]}  Be8 {[%clk 0:02:19]} 14. f4 {[%clk 0:02:57]}  h6 {[%clk 0:01:56]} 15. g4 {[%clk 0:02:55]}  Rxc3 {[%clk 0:01:51]} 16. bxc3 {[%clk 0:02:50]}  Rc8 {[%clk 0:01:51]} 17. Rh3 {[%clk 0:02:42]}  b5 {[%clk 0:01:03]} 18. Bxf6 {[%clk 0:02:39]}  Bxf6 {[%clk 0:01:01]} 19. g5 {[%clk 0:02:40]}  Be7 {[%clk 0:00:48]} 20. gxh6 {[%clk 0:02:39]}  b4 {[%clk 0:00:48]} 21. Nb3 {[%clk 0:02:20]}  Qh5 {[%clk 0:00:44]} 22. cxb4 {[%clk 0:02:10]}  Qxh6 {[%clk 0:00:44]} 23. f5 {[%clk 0:01:29]}  Bd7 {[%clk 0:00:30]} 24. Rg3 {[%clk 0:01:24]}  Qxh4 {[%clk 0:00:26]} 25. Rdg1 {[%clk 0:01:16]}  Bf6 {[%clk 0:00:26]} 26. Qxd6 {[%clk 0:01:15]}  Qxe4 {[%clk 0:00:24]} 27. R3g2 {[%clk 0:00:41]}  Ba4 {[%clk 0:00:23]} 28. fxe6 {[%clk 0:00:35]}  fxe6 {[%clk 0:00:21]} 29. Nc5 {[%clk 0:00:30]}  Qxb4+ {[%clk 0:00:21]} 30. Kc1 {[%clk 0:00:28]}  Qb2+ {[%clk 0:00:19]} 31. Kd1 {[%clk 0:00:26]}  Qb1+ {[%clk 0:00:19]} 32. Ke2 {[%clk 0:00:26]}  Qxc2+ {[%clk 0:00:19]} 33. Qd2 {[%clk 0:00:23]}  Qxc5 {[%clk 0:00:17]} 34. Rb1 {[%clk 0:00:19]}  Bb5+ {[%clk 0:00:17]} 35. Ke1 {[%clk 0:00:13]}  Bh4+ {[%clk 0:00:15]} 36. Kd1 {[%clk 0:00:14]}  Rd8 {[%clk 0:00:15]} 37. Qxd8+ {[%clk 0:00:12]}  Bxd8 {[%clk 0:00:16]} 38. Rbb2 {[%clk 0:00:12]}  Bf6 {[%clk 0:00:16]} 39. Rbd2 {[%clk 0:00:12]}  Ba4+ {[%clk 0:00:14]} 40. Ke1 {[%clk 0:00:12]}  Qe3+ {[%clk 0:00:14]} 41. Rge2 {[%clk 0:00:11]}  Qg1# {[%clk 0:00:15]} 0-1


[Site "https://www.chess.com"]

[Event "Titled Tuesday Blitz May 23 Early 2023"]
[White "Spata, German"]
[Black "Remizov, Yaroslav"]
[WhiteFideId "113026"]
[BlackFideId "34134015"]
[WhiteElo "2260"]
[BlackElo "2400"]
[Result "0-1"]
[Round "02"]
[TimeControl "180+2"]
[Date "2023.05.23"]
[WhiteClock "0:00:04"]
[BlackClock "0:00:18"]

1. Nf3 {[%clk 0:02:52]}  g5 {[%clk 0:02:56]} 2. Nxg5 {[%clk 0:02:46]}  e5 {[%clk 0:02:57]} 3. Nf3 {[%clk 0:02:44]}  e4 {[%clk 0:02:57]} 4. Nd4 {[%clk 0:02:43]}  Nc6 {[%clk 0:02:57]} 5. Nxc6 {[%clk 0:02:43]}  dxc6 {[%clk 0:02:57]} 6. d3 {[%clk 0:02:43]}  Nf6 {[%clk 0:02:57]} 7. Nc3 {[%clk 0:02:38]}  Bb4 {[%clk 0:02:55]} 8. Bd2 {[%clk 0:02:33]}  Qe7 {[%clk 0:02:35]} 9. Nxe4 {[%clk 0:02:26]}  Nxe4 {[%clk 0:02:33]} 10. dxe4 {[%clk 0:02:26]}  Qxe4 {[%clk 0:02:30]} 11. a3 {[%clk 0:02:12]}  Bc5 {[%clk 0:02:16]} 12. Bc3 {[%clk 0:02:01]}  Rg8 {[%clk 0:02:00]} 13. Qd3 {[%clk 0:01:58]}  Bf5 {[%clk 0:01:57]} 14. Qxe4+ {[%clk 0:01:11]}  Bxe4 {[%clk 0:01:57]} 15. f3 {[%clk 0:01:05]}  Bxc2 {[%clk 0:01:53]} 16. e4 {[%clk 0:01:05]}  Bb3 {[%clk 0:01:37]} 17. g4 {[%clk 0:01:03]}  O-O-O {[%clk 0:01:33]} 18. Be2 {[%clk 0:00:55]}  Be3 {[%clk 0:01:27]} 19. Bd1 {[%clk 0:00:49]}  Be6 {[%clk 0:01:24]} 20. Ke2 {[%clk 0:00:41]}  Bf4 {[%clk 0:01:24]} 21. Bc2 {[%clk 0:00:35]}  c5 {[%clk 0:00:53]} 22. h3 {[%clk 0:00:29]}  b5 {[%clk 0:00:49]} 23. Rad1 {[%clk 0:00:28]}  Rde8 {[%clk 0:00:48]} 24. Kf2 {[%clk 0:00:21]}  Kb7 {[%clk 0:00:47]} 25. Bd2 {[%clk 0:00:20]}  Be5 {[%clk 0:00:46]} 26. Bc3 {[%clk 0:00:20]}  Bf4 {[%clk 0:00:46]} 27. Bd2 {[%clk 0:00:21]}  Bd6 {[%clk 0:00:46]} 28. Bc3 {[%clk 0:00:19]}  c4 {[%clk 0:00:42]} 29. Ke3 {[%clk 0:00:15]}  Rd8 {[%clk 0:00:32]} 30. Bd4 {[%clk 0:00:10]}  h5 {[%clk 0:00:27]} 31. Ke2 {[%clk 0:00:10]}  Bf4 {[%clk 0:00:23]} 32. Be3 {[%clk 0:00:10]}  Be5 {[%clk 0:00:23]} 33. Bc1 {[%clk 0:00:08]}  a5 {[%clk 0:00:23]} 34. Rxd8 {[%clk 0:00:08]}  Rxd8 {[%clk 0:00:23]} 35. Rd1 {[%clk 0:00:09]}  Rh8 {[%clk 0:00:21]} 36. f4 {[%clk 0:00:07]}  hxg4 {[%clk 0:00:17]} 37. fxe5 {[%clk 0:00:07]}  gxh3 {[%clk 0:00:17]} 38. Rh1 {[%clk 0:00:05]}  b4 {[%clk 0:00:16]} 39. axb4 {[%clk 0:00:05]}  axb4 {[%clk 0:00:17]} 40. Bf4 {[%clk 0:00:06]}  c5 {[%clk 0:00:17]} 41. Kf3 {[%clk 0:00:05]}  Kc6 {[%clk 0:00:17]} 42. Kg3 {[%clk 0:00:05]}  Rg8+ {[%clk 0:00:17]} 43. Kf3 {[%clk 0:00:05]}  Rg2 {[%clk 0:00:17]} 44. Rc1 {[%clk 0:00:04]}  Bg4+ {[%clk 0:00:17]} 45. Ke3 {[%clk 0:00:04]}  Re2# {[%clk 0:00:18]} 0-1


[Site "https://www.chess.com"]

[Event "Titled Tuesday Blitz May 23 Early 2023"]
[White "Talibov, Shiroghlan"]
[Black "Danielyan, Vahe"]
[WhiteFideId "13429078"]
[BlackFideId "13304828"]
[WhiteElo "2188"]
[BlackElo "2423"]
[Result "1-0"]
[Round "02"]
[TimeControl "180+2"]
[Date "2023.05.23"]
[WhiteClock "0:00:54"]
[BlackClock "0:00:01"]

1. a3 {[%clk 0:03:00]}  e5 {[%clk 0:02:57]} 2. c4 {[%clk 0:02:59]}  f5 {[%clk 0:02:51]} 3. b4 {[%clk 0:02:48]}  a5 {[%clk 0:02:46]} 4. Bb2 {[%clk 0:02:46]}  axb4 {[%clk 0:02:22]} 5. axb4 {[%clk 0:02:41]}  Rxa1 {[%clk 0:02:23]} 6. Bxa1 {[%clk 0:02:41]}  Bxb4 {[%clk 0:02:21]} 7. Bxe5 {[%clk 0:02:40]}  Qe7 {[%clk 0:02:16]} 8. Nf3 {[%clk 0:02:38]}  Nf6 {[%clk 0:02:06]} 9. e3 {[%clk 0:02:35]}  Nc6 {[%clk 0:01:55]} 10. Bb2 {[%clk 0:02:33]}  O-O {[%clk 0:01:53]} 11. Be2 {[%clk 0:02:31]}  d6 {[%clk 0:01:40]} 12. O-O {[%clk 0:02:29]}  Bd7 {[%clk 0:01:37]} 13. Nc3 {[%clk 0:02:29]}  Ne5 {[%clk 0:01:23]} 14. Qb3 {[%clk 0:02:25]}  Bxc3 {[%clk 0:01:18]} 15. Bxc3 {[%clk 0:02:23]}  Bc6 {[%clk 0:01:05]} 16. Nxe5 {[%clk 0:02:18]}  dxe5 {[%clk 0:01:04]} 17. Bb4 {[%clk 0:02:19]}  Qd7 {[%clk 0:00:38]} 18. Bxf8 {[%clk 0:02:16]}  Qxd2 {[%clk 0:00:39]} 19. Bxg7 {[%clk 0:01:26]}  Kxg7 {[%clk 0:00:19]} 20. Qd3 {[%clk 0:01:22]}  Qb4 {[%clk 0:00:17]} 21. Qxf5 {[%clk 0:01:21]}  Be4 {[%clk 0:00:16]} 22. Qxe5 {[%clk 0:01:19]}  Qb6 {[%clk 0:00:14]} 23. Qe7+ {[%clk 0:01:15]}  Kg6 {[%clk 0:00:13]} 24. c5 {[%clk 0:01:14]}  Qc6 {[%clk 0:00:13]} 25. Bc4 {[%clk 0:01:12]}  b6 {[%clk 0:00:10]} 26. Qf7+ {[%clk 0:01:12]}  Kf5 {[%clk 0:00:10]} 27. f3 {[%clk 0:01:11]}  Bc2 {[%clk 0:00:09]} 28. e4+ {[%clk 0:01:11]}  Ke5 {[%clk 0:00:09]} 29. cxb6 {[%clk 0:01:02]}  cxb6 {[%clk 0:00:07]} 30. Qe7+ {[%clk 0:01:01]}  Kd4 {[%clk 0:00:07]} 31. Bd5 {[%clk 0:00:58]}  Nxd5 {[%clk 0:00:06]} 32. exd5 {[%clk 0:00:58]}  Qxd5 {[%clk 0:00:06]} 33. Qb4+ {[%clk 0:00:58]}  Ke3 {[%clk 0:00:03]} 34. Re1+ {[%clk 0:00:56]}  Kd3 {[%clk 0:00:04]} 35. Qxb6 {[%clk 0:00:53]}  Kd2 {[%clk 0:00:01]} 36. Qe3# {[%clk 0:00:54]} 1-0


[Site "https://www.chess.com"]